Cogmind - Beta 17 @@@ ROGUE MODE // 2026.06.30 @ 20:59:43 Player: THN-L0C Result: Self-destructed Performance ------------- Evolutions (0) 0 Regions Visited (3) 600 Robots Destroyed (27) 135 Value Destroyed (698) 698 Prototype IDs (17) 340 Alien Tech Used (0) 0 Bonus (300) 300 TOTAL SCORE: 2073 Bonus ------- Registered with UFD 300 Cogmind --------- Core Integrity 40/250 Matter 400/400 Energy 280/280 System Corruption 0% Temperature Cool (0) Movement Treading (260) Ox1 Location -9/Scraptown Parts ------- > --- POWER (1) -------- Heavy Ion Engine > --- PROPULSION (2) --- Spiked Treads Spiked Treads > --- UTILITY (2) ------ High-capacity Storage Unit Medium Matter Pod > --- WEAPON (2) ------- Battle Rifle Battle Rifle > --- INVENTORY (20) --- Heavy Ion Engine Makeshift Leg Makeshift Leg Armored Wheel Armored Wheel Armored Wheel Humpback Self-contained Transmogrifier Subdweller Beam Cannon Powered Cannon Barrage Gun Battle Cannon Rocket Launcher Rocket Launcher Dirty Datajack (20) Makeshift Axe Peak State ------------ > --- POWER ------------ Heavy Ion Engine > --- PROPULSION ------- Spiked Treads Spiked Treads > --- UTILITY ---------- High-capacity Storage Unit Medium Matter Pod > --- WEAPON ----------- Battle Rifle Battle Rifle > --- INVENTORY -------- Heavy Ion Engine Makeshift Leg Makeshift Leg Armored Wheel Armored Wheel Armored Wheel Humpback Scrap Shield Self-contained Transmogrifier Subdweller Beam Cannon Powered Cannon Battle Rifle Battle Cannon Rocket Launcher Rocket Launcher Dirty Datajack Hammer [Rating: 19] Favorites ----------- Power Heavy Ion Engine Engine Heavy Ion Engine Propulsion Spiked Treads Treads Spiked Treads Wheel Armored Wheel Utility High-capacity Storage Unit Device Seismic Detector Storage High-capacity Storage Unit Protection Light Armor Plating Weapon Battle Rifle Ballistic Gun Battle Rifle Ballistic Cannon Battle Cannon Impact Weapon Hammer Build | -11 -10 -10 -9 ------- Run | Yrd Mat Sub Scr Slots Evolved . | . . . . Power . | . . . . Propulsion . | . . . . Utility . | . . . . Weapon . | . . . . Parts Attached 30 | 8 12 10 . Power 5 | 2 2 1 . Engine 5 | 2 2 1 . Core . | . . . . Reactor . | . . . . Propulsion 8 | 2 4 2 . Treads 4 | . 2 2 . Leg . | . . . . Wheel 4 | 2 2 . . Hover . | . . . . Flight . | . . . . Utility 8 | 2 4 2 . Device 2 | 1 . 1 . Storage 5 | 1 3 1 . Processor . | . . . . Hackware . | . . . . Protection 1 | . 1 . . Artifact . | . . . . Weapon 9 | 2 2 5 . Energy Gun . | . . . . Energy Cannon . | . . . . Ballistic Gun 7 | 2 2 3 . Ballistic Cannon 1 | . . 1 . Launcher . | . . . . Special Weapon . | . . . . Impact Weapon 1 | . . 1 . Slashing Weapon . | . . . . Piercing Weapon . | . . . . Special Melee Weapon . | . . . . Unidentified Prototypes 1 | . 1 . . Parts Lost 8 | . 2 6 . Power 1 | . . 1 . Propulsion 2 | . 1 1 . Utility 3 | . 1 2 . Weapon 2 | . . 2 . Highest Loss Streak 2 | . 1 2 . To Critical Strikes . | . . . . Average Backups 15 | 1 9 16 16 Power 1 | . 1 1 1 Propulsion 4 | 1 1 4 5 Utility 2 | . 2 2 1 Weapon 6 | . 3 7 7 Tool/Special . | . . . . Unused Backups 20 | . 1 4 15 Power 1 | . . . 1 Propulsion 5 | . . 1 4 Utility 1 | . . . 1 Weapon 11 | . 1 3 7 Tool/Special 2 | . . . 2 Average Slot Usage (%) 95 | . 99 92 100 Engine 13 | . 14 13 14 Treads 21 | . 4 24 28 Wheel 6 | . 23 3 . Device 2 | . 7 1 . Storage 20 | . 14 19 28 Protection 1 | . 6 . . Ballistic Gun 24 | . 28 21 28 Impact Weapon 3 | . . 5 . Peak Build Rating 19 | 7 13 19 19 Average Rating 15 | 5 10 16 19 On Entrance 9 | . 7 13 19 Avg Prop Armor Cover (%) . | . . . . Naked Turns . | . . . . Heaviest Build 54 | 15 53 54 54 Greatest Support 40 | 26 40 40 40 Greatest Overweight (x) 2 | . 2 2 1 Average Overweight (x) . | . . 1 1 Largest Inventory Capacity 20 | 8 20 20 20 Average Capacity 18 | 7 14 20 20 Most Carried 20 | 5 13 20 20 Average Carried 17 | 2 9 19 19 Final Capacity 20 | 8 20 20 20 Final Carried 20 | 5 12 20 18 Class Distribution -------------------- 64% | Mutant 35% | Derelict-Mutant Dominant Class ---------------- Mutant | -10/Materials Mutant | -10/Subcaves Derelict-Mutant | -9/Scraptown Resources | -11 -10 -10 -9 ----------- Run | Yrd Mat Sub Scr Matter Collected 1195 | 232 374 579 10 Remotely . | . . . . Salvage Created 1036 | 16 682 338 . Parts 68 | 5 40 23 . Haulers Intercepted 1 | . 1 . . Recyclers Shooed 1 | 1 . . . Parts Field Recycled . | . . . . Retrieved Matter . | . . . . Parts Self-Destructed 13 | . . 13 . Prevented . | . . . . Parts Restored . | . . . . Kills | -11 -10 -10 -9 ------- Run | Yrd Mat Sub Scr Combat Hostiles Destroyed 21 | . 12 9 . Guns 19 | . 12 7 . Cannons 2 | . . 2 . Classes Destroyed 9 | 1 5 3 . Builder 2 | . 2 . . Tunneler 1 | 1 . . . Hauler 1 | . 1 . . Recycler 2 | . 2 . . Swarmer 5 | . 3 2 . Grunt 9 | . 9 . . Sentry 1 | . . 1 . Artisan 1 | . . 1 . Subdweller 6 | . . 6 . Best Kill Streak 3 | 1 3 2 . Combat Bots Only 2 | . 2 2 . Max Kills in Single Turn 1 | 1 1 1 . Gunslinging . | . . . . Exploded . | . . . . Melee . | . . . . Uniques/NPCs Destroyed . | . . . . Combat | -11 -10 -10 -9 -------- Run | Yrd Mat Sub Scr Hostile Shots Fired 125 | . 56 69 . Missed 34 | . 14 20 . Hits 91 | . 42 49 . Projectile 91 | . 42 49 . Critical Strikes 3 | . 1 2 . Damage Taken 1545 | . 492 1053 . Core 210 | . 89 121 . Absorbed by Shields . | . . . . Core Remaining (%) 100 | 100 . . . Volleys Fired 99 | 4 57 38 . Largest 2 | 2 2 2 . Hottest 53 | 40 40 53 . Shots Fired 193 | 8 114 71 . Gun 180 | 8 114 58 . Cannon 13 | . . 13 . Launcher . | . . . . Special . | . . . . Kinetic 193 | 8 114 71 . Thermal . | . . . . Explosive . | . . . . Electromagnetic . | . . . . Robot Hit Streak 14 | 3 11 14 . Robot Miss Streak 6 | 1 6 2 . Penetration Max . | . . . . Secondary Targets 2 | . 1 1 . Max Gunslinging Chain 1 | . 1 1 . Shots Hit Robots 135 | 6 75 54 . Core Hits 45 | 1 28 16 . Critical Kills . | . . . . Critical Parts Destroyed 1 | . 1 . . Critical Strikes 2 | . 1 1 . Destroy 2 | . 1 1 . Melee Attacks 17 | . . 17 . Impact 17 | . . 17 . Slashing . | . . . . Piercing . | . . . . Sneak Attacks . | . . . . Combat Hostiles . | . . . . Follow-up Attacks . | . . . . Damage Inflicted 1952 | 87 989 876 . Guns 1725 | 87 989 649 . Cannons 227 | . . 227 . Explosions . | . . . . Melee . | . . . . Ramming . | . . . . Kinetic 1952 | 87 989 876 . Thermal . | . . . . Explosive . | . . . . Electromagnetic . | . . . . Impact . | . . . . Slashing . | . . . . Piercing . | . . . . Highest Corruption . | . . . . Average Corruption . | . . . . Corruption Purged . | . . . . Corruption Blocked . | . . . . Overload Shots . | . . . . Overflow Damage . | . . . . Projectiles . | . . . . Explosions . | . . . . Melee . | . . . . Knockbacks 3 | . . 3 . Impact . | . . . . Kinetic 3 | . . 3 . Secondary . | . . . . Self-Inflicted Damage . | . . . . Shots . | . . . . Rammed . | . . . . Targets Rammed . | . . . . Kicked . | . . . . Crushed . | . . . . Highest Temperature 416 | . 416 237 . Average Temperature 92 | . 83 129 . Received Heat Transfer 1010 | . 246 764 . Siege Activations . | . . . . Martial Activations . | . . . . Shielding Activations . | . . . . Robots Disrupted . | . . . . Combat Hostiles . | . . . . Robots Corrupted . | . . . . Combat Hostiles . | . . . . Parts Fried . | . . . . Impact Corruptions . | . . . . Robots Melted . | . . . . Combat Hostiles . | . . . . Parts Melted . | . . . . Heat Transferred . | . . . . Parts Sabotaged . | . . . . Parts Stolen . | . . . . Parts Stripped . | . . . . Power Chain Reactions . | . . . . Alert | -11 -10 -10 -9 ------- Run | Yrd Mat Sub Scr Maximum Alert Level . | . . . . Low Security (%) 100 | 100 100 . . Level 1 . | . . . . Level 2 . | . . . . Level 3 . | . . . . Level 4 . | . . . . Level 5 . | . . . . High Security . | . . . . Max Security . | . . . . Peak Influence 149 | 5 149 . . Initial . | . . . . Average 44 | . 47 . . Influence Increases 469 | 5 394 70 . Destroy 0b10 Robot/C 300 | . 240 60 . Destroy 0b10 Robot/NC 30 | 5 25 . . Destroy Leader 62 | . 52 10 . Successful Hack 16 | . 16 . . Select Force Hacks 30 | . 30 . . Destroy Structure 1 | . 1 . . Lose Combat Pursuer 30 | . 30 . . Influence Decreases 469 | 5 394 70 . Time Decay 459 | 5 384 70 . Lost Part 10 | . 10 . . Squads Dispatched 3 | . 3 . . Investigation 3 | . 3 . . Extermination . | . . . . Reinforcement . | . . . . Assault . | . . . . Garrison . | . . . . Intercept . | . . . . Searches Triggered . | . . . . Construction Impeded . | . . . . Haulers Reinforced . | . . . . Active Scanning Responses . | . . . . Cargo Convoy Interrupts . | . . . . Stealth | -11 -10 -10 -9 --------- Run | Yrd Mat Sub Scr Distress Signals 2 | . 2 . . Communications Jammed . | . . . . Distress Signals . | . . . . Times Spotted 33 | . 19 14 . Peak Tracking Total 7 | . 5 7 . Tactical Retreats 2 | . 2 . . Traps | -11 -10 -10 -9 ------- Run | Yrd Mat Sub Scr Traps Triggered 3 | . 2 1 . Indirectly . | . . . . Trap Hack Attempts . | . . . . Triggered . | . . . . Disarmed . | . . . . Reprogrammed . | . . . . Reused . | . . . . Traps Extracted . | . . . . Installed . | . . . . Triggered . | . . . . Machines | -11 -10 -10 -9 ---------- Run | Yrd Mat Sub Scr Machines Disabled 1 | . . 1 . Max in Single Turn 1 | . . 1 . Machines Repaired . | . . . . Machines Dismantled . | . . . . Machines Sabotaged . | . . . . Overloaded Fab Kills . | . . . . Hacking | -11 -10 -10 -9 --------- Run | Yrd Mat Sub Scr Machines Accessed 10 | . 8 2 . Terminals 7 | . 7 . . Fabricators . | . . . . Repair Stations . | . . . . Recycling Units 1 | . 1 . . Scanalyzers . | . . . . Garrison Access . | . . . . Total Hacks 31 | . 26 5 . Successful 20 | . 15 5 . Failed 11 | . 11 . . Catastrophic 1 | . 1 . . Database Lockouts . | . . . . Manual 24 | . 24 . . Terminals 25 | . 25 . . Fabricators . | . . . . Repair Stations . | . . . . Recycling Units 1 | . 1 . . Scanalyzers . | . . . . Garrison Access . | . . . . Terminal Hacks 10 | . 5 5 . Record 4 | . . 4 . Robot Analysis 3 | . 3 . . Prototype ID Bank 1 | . 1 . . Recall Investigation 1 | . 1 . . Proto ID Catalog 1 | . . 1 . Fabricator Hacks . | . . . . Repair Station Hacks . | . . . . Recycling Unit Hacks . | . . . . Scanalyzer . | . . . . Garrison Access Hacks . | . . . . Unauthorized Hacks 10 | . 10 . . Terminals 9 | . 9 . . Botnet 3 | . 3 . . Disrupt 1 | . 1 . . Skim 5 | . 5 . . Fabricators . | . . . . Repair Stations . | . . . . Recycling Units 1 | . 1 . . Tunnel 1 | . 1 . . Scanalyzers . | . . . . Garrison Access . | . . . . Data Cores Recovered . | . . . . Used . | . . . . Hacking Detections 7 | . 7 . . Full Trace Events 1 | . 1 . . Feedback Events . | . . . . Feedback Blocked . | . . . . Robot Schematics Acquired . | . . . . Robots Built . | . . . . Authchips . | . . . . Time . | . . . . Total Robot Build Rating . | . . . . Part Schematics Acquired . | . . . . Parts Built . | . . . . Authchips . | . . . . Time . | . . . . Total Part Build Rating . | . . . . Part Studies Acquired . | . . . . Parts Repaired . | . . . . Time . | . . . . Parts Recycled . | . . . . Recycled Matter . | . . . . Retrieved Matter . | . . . . Retrieved Components . | . . . . Parts Scanalyzed . | . . . . Part Schematics Acquired . | . . . . Parts Damaged . | . . . . Bothacking | -11 -10 -10 -9 ------------ Run | Yrd Mat Sub Scr Used RIF Installer . | . . . . Robots Hacked . | . . . . Non-combat . | . . . . Combat . | . . . . Robot Hacks Applied . | . . . . Relay Couplers Released . | . . . . Fabnet Peak Effective % . | . . . . Robots Rewired . | . . . . Allies Hacked . | . . . . Hacks Repelled . | . . . . Allies | -11 -10 -10 -9 -------- Run | Yrd Mat Sub Scr Total Allies . | . . . . Largest Group . | . . . . Highest-Rated Group . | . . . . Highest-Rated Ally . | . . . . Total Orders . | . . . . Ally Attacks . | . . . . Total Damage . | . . . . Kills . | . . . . Allies Corrupted . | . . . . Allies Melted . | . . . . Intel | -11 -10 -10 -9 ------- Run | Yrd Mat Sub Scr Active Infowar (turns) 1017 | 7 689 321 . Terrain 50 | . . 50 . Seismic 967 | 7 689 271 . Robot Analysis Total 3 | . 3 . . Derelict Logs Recovered 1 | . . 1 . Drone Launches . | . . . . Drone Recoveries . | . . . . Exploration | -11 -10 -10 -9 ------------- Run | Yrd Mat Sub Scr Turns Passed 7119 | 75 1372 4080 1592 Spaces Moved 2861 | 53 622 1574 612 Core 3 | 3 . . . Treads 1973 | . 112 1249 612 Legs . | . . . . Wheels 885 | 50 510 325 . Hover . | . . . . Flight . | . . . . Fastest Speed 50 | 50 90 120 260 Average Speed 208 | 87 108 231 260 Slowest Speed 260 | 90 240 260 260 Overloaded Moves . | . . . . Propulsion Burnouts . | . . . . Robots Hopped . | . . . . Potential Cave-ins . | . . . . Cave-ins Triggered . | . . . . Exploration Rate (%) 50 | 4 79 63 54 Regions Visited 3 Branch Regions 2 Pre-discovered Areas 3 | . 1 1 1 Known Exits Taken 1 | . 1 . . Unknown Exits Taken 2 | 1 . 1 . Scrap Searched 11 | . . 9 2 Spaces Dug . | . . . . Terrain Destroyed . | . . . . Melee . | . . . . Projectile . | . . . . AOE . | . . . . Terrain Rammed . | . . . . Walls Destroyed . | . . . . Machines Disabled . | . . . . Actions | -11 -10 -10 -9 --------- Run | Yrd Mat Sub Scr Total 3809 | 69 1204 1924 612 Wait 749 | 1 497 251 . Move 2858 | 52 621 1573 612 Hop . | . . . . Pick Up 35 | 4 10 21 . Fast Attach 7 | 7 . . . Attach 8 | . 2 6 . Detach . | . . . . Swap 18 | 1 11 6 . Drop 18 | . 6 12 . Fire 99 | 4 57 38 . Melee 17 | . . 17 . Ram . | . . . . Kick . | . . . . Crush . | . . . . Escape Stasis . | . . . . Rewire . | . . . . Trap . | . . . . Miscellaneous . | . . . . Route ------- -11/Scrapyard -10/Materials (discovered 6 exits: *Mat x3 / *Min x2 / *Sub) -10/Subcaves -9/Scraptown History --------- Turn | Location | Event 17 | -11/Scrapyard | Discovered new exit (range 16) 76 | -11/Scrapyard | Entered Materials 305 | -10/Materials | Build established: Mutant 470 | -10/Materials | Discovered new exit (range 8) 474 | -10/Materials | Discovered new exit (range 15) 672 | -10/Materials | Discovered new exit (range 9) 944 | -10/Materials | Learned Storage emergency access door positions 1022 | -10/Materials | Learned Storage garrison access intel 1092 | -10/Materials | Learned Storage emergency access door positions 1151 | -10/Materials | Loaded intel: 1 trap record 1202 | -10/Materials | Identified exit to Mines 1202 | -10/Materials | Identified exit to Materials 1264 | -10/Materials | Identified exit to Subcaves 1448 | -10/Materials | Entered Subcaves 1449 | -10/Subcaves | Approached by a straggling Scientist 1712 | -10/Subcaves | Ambushed by swarm of Subdwellers 1801 | -10/Subcaves | Visited Clippyterm 1804 | -10/Subcaves | Learned Factory garrison access intel 1882 | -10/Subcaves | Core integrity fell below 50% 1964 | -10/Subcaves | Learned location of Zion (-7) 1964 | -10/Subcaves | Met a Zionite searching for "candidates" 2043 | -10/Subcaves | Scientist uncovered a shortcut to Scraptown 2510 | -10/Subcaves | Shifting Twisted Machinery released Mak. Leg 2619 | -10/Subcaves | Shifting Twisted Machinery released Hvy. Riot Gun 3638 | -10/Subcaves | A swath of the cavern ceiling suddenly collapsed 3738 | -10/Subcaves | A swath of the cavern ceiling suddenly collapsed 3906 | -10/Subcaves | Visited 4L-MR0's lab 3948 | -10/Subcaves | Found Powered Cannon 3962 | -10/Subcaves | Found Prototype Device 4658 | -10/Subcaves | Core integrity fell below 20% 4910 | -10/Subcaves | Build established: Derelict-Mutant 5490 | -10/Subcaves | Shifting Twisted Machinery released Shrapnel Trap 5528 | -10/Subcaves | Entered Scraptown 5593 | -9/Scraptown | Heard Great Nut preacher, LISTEN AND RECITE! 5630 | -9/Scraptown | Learned location of Extension (-6) 5703 | -9/Scraptown | Visited Awakened 5731 | -9/Scraptown | Visited TADAMA 6139 | -9/Scraptown | Visited UFD Registry 6139 | -9/Scraptown | Registered with UFD as "Shockboard" 6238 | -9/Scraptown | Visited Red Mages 6293 | -9/Scraptown | Visited Comm Corps 6436 | -9/Scraptown | Visited Abandonware Association 6503 | -9/Scraptown | Visited Science Guys 6535 | -9/Scraptown | Visited Science Testing Area 6607 | -9/Scraptown | Delivered Scrap Shield to a Scientist 6696 | -9/Scraptown | Visited Derelict Rescue Squad 6730 | -9/Scraptown | Visited DA-N13 Charitable Foundation 6758 | -9/Scraptown | Visited Cartography Club 6797 | -9/Scraptown | Visited Analyses Database 6854 | -9/Scraptown | Visited Research Penetration Think Tank 6919 | -9/Scraptown | Visited Modified Component R&D 7120 | -9/Scraptown | Self-destructed Last Messages --------------- Can you believe it?! 75%! That's the success rate I've gotten my latest hack up to. Oh sorry, you probably have no idea what I'm on about... 0b10 Research has so much juicy knowledge tucked away in its recesses that we could really use some more ways to guarantee safer access. Everyone knows that getting spotted doing unwelcome things within sight of a Researcher is a headache waiting to happen. What we need to do is keep them busy somehow. Well... Turns out we just need to give them something more interesting to ponder than us! Just use \\HGKC and that'll keep 'em busy practically forever. Well, 25% of the Researchers out there will just shrug it off, but this is already quite helpful. Next I'll be working on a way to get them to first spit out everything they know, hehehe. 06919_ LOCAL NARROWCAST: Modified Component R&D. 06984_ MO-H9O(p) scrutinizes some mainframe outputs. 06985_ MO-H9O(p) closely examines the mainframe. 07005_ MO-H9O(p) scrutinizes some mainframe outputs. Map ----- +----------------------------------------------------+ | "#?? #????????????? | | "#?? $ #????????????? | | "#? #????????????? | | "## #??????????????? | | #??????????????? | | """""""""""""""""""""" "## #????????????? | | """""""""""""""""""""" "#? $ #????????????? | | ## ################"" "#?? #????????????? | | ? ??????????????#"" "#??#######???????????? | | ?????????????#"" "#?? """"""""#???????? | | "" "" ????????????#"" "#?? " " " "#???????? | | " "???????????###"" "#? "#???????? | | ???????###### #"" "## &"#???????? | | ""??????? &"#???????? | | ""??????? "## ""#???????? | | ???????###### #"" "#? " " " "#???????? | | "? ?????????????###"" "#?? """"""""????????? | | "" "??????????????#"" "#??#######???????????? | | ? ??????????????#"" "#??########??????????? | | ? ??????????????#"" "#?? #??????????? | | ## ################"" "#? #??????????? | | """""""""""""""""""""" "## #??????????? | | """""""""""""""""""""" #??????????? | | "## #??????????? | | "#? #??????????? | | @ "#?? #??????????? | | ##? #??????????? | | j E#?? #??????????? | | """""" """"""""""" """""" ##??#######??????????? | | ###### ########### ###### #????????????????????? | | ????"""""??????? ???# #????????????????????? | | ??? ???? ?# #????????????????????? | | ??""" "#?#"" "" "&# #????????????????????? | | ??"##" "??#"" "" " # #????????????????????? | | ????# ??#"" &# #????????????????????? | | ???? """ #?#"""" ""# ############?????????? | | ???? ##" #?#""" """"# #?????????? | | ???? "??????#" "/""# ##?????????? | | ????? ???????""" """"# #?????????? | | ???????????????""" X ???# #?????????? | | ???????????????""""?????# #?????????? | | ????????????????????????# ############?????????? | | ????????????????????????# #####????????????????? | | ????????????????????????# """"#????????????????? | | ???????????????????##" # "" "#????????????????? | | ???????????? "#????????????????? | | ???????????? " "#????????????????? | | ???????????? """"#????????????????? | | ?????????????"##!! ##"" ## ######????????????????? | | ???????????????#"????"""?##??????????????????????? | +----------------------------------------------------+ Best States ------------- Heat Dissipation 25 Energy Generation 14 Energy Capacity 280 Matter Stores 400 Matter Capacity 400 Sight Range 16 Terrain Scan Range 16 Terrain Scan Density 10 Armor Coverage 150 Evasion (%) 42 Recoil Reduction 2 Item Schematics ----------------- None Robot Schematics ------------------ None Fabricated ------------ Nothing Repaired ---------- Nothing Studied --------- None Alien Tech Used ----------------- None Achievements -------------- None Challenges ------------ None Game ------ Seed MatterDynamicBasin Manual? 0 Play Time 00:25:25 Cumulative 410.0 hours Start 2026.06.30 @ 20:36:47 End 2026.06.30 @ 20:59:43 Sessions 1 Manual Loads 0 Difficulty Rogue Special Mode None Game No. 307 Rogue 307 Adventurer 0 Explorer 0 Win Type - Total 9 Types 4/0/3/2/0/0/0/0/0/0 Lore% 76 Gallery% 73 Achievement% 50 Wizard Run 0 Options --------- Layout 2 ASCII 0 Keyboard 0 Movement Vi Keybinds 0 Fullscreen 2 Font 32/SmallcapsGlow Map View 77x44 Zoom Use 0% Tactical HUD 1 Map Filters NONE Filters NONE Steam 1 RUN: 1cba7400-e80b-460e-a496-143f9c9625ed